bitfinex/quotes_BTCUSD_20260104
["timestamp","ask_amount","ask_price","bid_price","bid_amount"]
[1767506443705,0.01094008,91407.0,91402.0,0.01094067]
[1767506444134,0.0109402,91406.0,91401.0,0.01094079]
[1767506444340,0.029522,91454.0,91400.0,0.06564499]
[1767506444341,0.0112975,91417.0,91412.0,0.04726351]
[1767506444539,0.0328184,91421.0,91414.0,0.0472194]
[1767506444716,0.05469299,91420.0,91414.0,0.0472194]
[1767506445055,0.01093876,91418.0,91414.0,0.0472194]
[1767506445747,0.01093864,91419.0,91414.0,0.0472194]
[1767506445947,0.01093876,91418.0,91414.0,0.05815864]
[1767506446831,0.01093864,91419.0,91414.0,0.05815864]
[1767506448391,0.01093876,91418.0,91414.0,0.05815864]
[1767506449882,0.01093864,91419.0,91418.0,0.000999]
[1767506450248,0.01093864,91419.0,91414.0,0.05815864]
[1767506451036,0.01093852,91420.0,91416.0,0.04726351]
[1767506453737,0.01093852,91420.0,91416.0,0.04711948]
[1767506459834,0.01093852,91420.0,91416.0,0.04707437]
[1767506460453,0.01093864,91419.0,91416.0,0.04707437]
[1767506464796,0.01093876,91418.0,91414.0,0.01093924]
[1767506464990,0.01093876,91418.0,91414.0,0.06052465]
[1767506465564,0.01093864,91419.0,91415.0,0.06052453]
[1767506465948,0.01093876,91418.0,91415.0,0.0495403]
[1767506466344,0.01093864,91419.0,91415.0,0.0495403]
[1767506466543,0.01093864,91419.0,91412.0,0.06563645]
[1767506466544,0.01,91415.0,91412.0,0.01093948]
[1767506466772,0.01093888,91417.0,91413.0,0.01093936]
[1767506467168,0.01093888,91417.0,91413.0,0.06052477]
[1767506469966,0.01093888,91417.0,91413.0,0.04958541]
[1767506470672,0.010939,91416.0,91413.0,0.04958541]
[1767506471294,0.010939,91416.0,91413.0,0.0395413]
[1767506471568,0.01093912,91415.0,91411.0,0.06052501]
[1767506472103,0.010939,91416.0,91411.0,0.06052501]
[1767506472311,0.01093888,91417.0,91412.0,0.06052489]
[1767506472565,0.010939,91416.0,91412.0,0.06052489]
[1767506472929,0.01093876,91418.0,91413.0,0.01093936]
[1767506473558,0.01093876,91418.0,91413.0,0.01089425]
[1767506473761,0.01093888,91417.0,91413.0,0.01089425]
[1767506475391,0.01093888,91417.0,91412.0,0.01093948]
[1767506475713,0.01093888,91417.0,91413.0,0.01093936]
[1767506476057,0.01093876,91418.0,91413.0,0.01093936]
[1767506476292,0.01093864,91419.0,91415.0,0.01093912]
[1767506476706,0.01093864,91419.0,91414.0,0.01093924]
[1767506478316,0.01093864,91419.0,91415.0,0.01089501]
[1767506479271,0.01093852,91420.0,91416.0,0.06052441]
[1767506479477,0.03292593,91421.0,91420.0,0.000999]
[1767506479904,0.01093864,91419.0,91416.0,0.04958541]
[1767506480090,0.01093864,91419.0,91416.0,0.0495403]
[1767506481924,0.01093852,91420.0,91416.0,0.0495403]
[1767506482555,0.01093852,91420.0,91416.0,0.0604793]
[1767506482756,0.01093852,91420.0,91416.0,0.0495403]
[1767506483154,0.01093864,91419.0,91416.0,0.0495403]
[1767506483335,0.01093864,91419.0,91415.0,0.01093912]
[1767506483739,0.01093852,91420.0,91415.0,0.01093912]
[1767506484361,0.01093852,91420.0,91415.0,0.06052453]
[1767506488177,0.01093852,91420.0,91415.0,0.0603805]
[1767506489305,0.01093876,91418.0,91415.0,0.04958541]
[1767506489459,0.01093852,91420.0,91415.0,0.06052453]
[1767506489804,0.01093852,91420.0,91415.0,0.01093912]
[1767506491164,0.01093852,91420.0,91414.0,0.01093924]
[1767506491165,0.01093876,91418.0,91412.0,0.01093948]
[1767506491394,0.01093876,91418.0,91414.0,0.01093924]
[1767506491916,0.01093876,91418.0,91413.0,0.05621467]
[1767506493320,0.01093876,91418.0,91414.0,0.01079523]
[1767506493729,0.02198753,91421.0,91415.0,0.01093912]
[1767506493927,0.02198753,91421.0,91418.0,0.01093876]
[1767506494744,0.02198753,91421.0,91417.0,0.01093888]
[1767506495091,0.02198753,91421.0,91418.0,0.01093876]
[1767506495368,0.0090989,91421.0,91418.0,0.01093876]
[1767506495533,0.0090989,91421.0,91417.0,0.02189981]
[1767506495711,0.00010753,91421.0,91418.0,0.01089465]
[1767506495915,0.00010753,91421.0,91418.0,0.0107507]
[1767506496516,0.00010753,91421.0,91418.0,0.01060676]
[1767506496858,0.00010753,91421.0,91420.0,0.04631888]
[1767506499324,0.00010753,91421.0,91420.0,0.04617496]
[1767506499525,0.02188,91427.0,91423.0,0.04631888]
[1767506499724,0.03281768,91427.0,91423.0,0.05725704]
[1767506500046,0.02188,91427.0,91423.0,0.05725704]
[1767506500611,0.03281768,91427.0,91423.0,0.04631888]
[1767506500810,0.02188,91427.0,91425.0,0.04631888]
[1767506501728,0.02188,91427.0,91424.0,0.01093804]
[1767506501934,0.020881,91427.0,91426.0,0.04631888]
[1767506502164,0.020881,91427.0,91424.0,0.01093804]
[1767506502374,0.020881,91427.0,91424.0,0.05725692]
[1767506502551,0.020881,91427.0,91425.0,0.05468911]
[1767506503555,0.020881,91427.0,91424.0,0.06562776]
[1767506504504,0.020881,91427.0,91424.0,0.06462876]
[1767506504913,0.03181868,91427.0,91422.0,0.01093828]
[1767506505400,0.0109378,91426.0,91421.0,0.06563002]
[1767506505539,0.0109378,91426.0,91422.0,0.01093828]
[1767506505743,0.0109378,91426.0,91421.0,0.0109384]
[1767506505977,0.0109378,91426.0,91422.0,0.01093828]
[1767506506185,0.0109378,91426.0,91421.0,0.0109384]
[1767506506760,0.0109378,91426.0,91420.0,0.01093852]
[1767506506761,0.01093792,91425.0,91420.0,0.01093852]
[1767506507188,0.01093792,91425.0,91421.0,0.0109384]
[1767506507566,0.01093792,91425.0,91422.0,0.04631888]
[1767506507767,0.020881,91427.0,91424.0,0.01093804]
[1767506507984,0.020881,91427.0,91422.0,0.05725716]
[1767506508713,0.03181868,91427.0,91423.0,0.01093816]
[1767506508939,0.020881,91427.0,91423.0,0.01093816]
[1767506509068,0.020881,91427.0,91424.0,0.01093804]
[1767506509266,0.020881,91427.0,91423.0,0.01093816]
[1767506509706,0.020881,91427.0,91424.0,0.01093804]
[1767506510306,0.03181868,91427.0,91423.0,0.01093816]
[1767506510964,0.020881,91427.0,91423.0,0.01093816]
[1767506511619,0.020881,91427.0,91424.0,0.01093804]
[1767506513224,0.020881,91427.0,91423.0,0.01093816]
[1767506513832,0.01,91423.0,91422.0,0.04631888]
[1767506514039,0.00991177,91423.0,91422.0,0.04631888]
[1767506514460,0.03181868,91427.0,91422.0,0.05725716]
[1767506514659,0.0109378,91426.0,91422.0,0.04631888]
[1767506515048,0.0109378,91426.0,91422.0,0.05725716]
[1767506515255,0.020881,91427.0,91423.0,0.01093816]
[1767506516141,0.03181868,91427.0,91422.0,0.05725716]
[1767506516559,0.0109378,91426.0,91422.0,0.04631888]
[1767506516803,0.03181868,91427.0,91422.0,0.04631888]
[1767506517132,0.0109378,91426.0,91422.0,0.05725716]
[1767506517483,0.03181868,91427.0,91422.0,0.05725716]
[1767506517883,0.0109378,91426.0,91422.0,0.04631888]
[1767506518616,0.0109378,91426.0,91422.0,0.05725716]
[1767506519390,0.13762117,91494.0,91420.0,0.06563076]
[1767506519391,0.06561875,91438.0,91429.0,0.01093744]
[1767506519585,0.06561875,91438.0,91427.0,0.02188]
[1767506519586,0.01093661,91436.0,91427.0,0.02188]
[1767506519788,0.01093732,91430.0,91427.0,0.02188]
[1767506520100,0.05929082,91431.0,91426.0,0.0109378]
[1767506520472,0.01093732,91430.0,91424.0,0.03281804]
[1767506520940,0.01093732,91430.0,91420.0,0.01093852]
[1767506520941,0.00991177,91424.0,91420.0,0.01093852]
[1767506521104,0.05826539,91424.0,91421.0,0.02188]
[1767506521452,0.01093864,91419.0,91413.0,0.01093936]
[1767506521569,0.01093864,91419.0,91406.0,0.21880216]
[1767506521570,0.01093924,91414.0,91405.0,0.01094032]
[1767506521775,0.04835362,91416.0,91410.0,0.02188]
[1767506522012,0.05929274,91415.0,91410.0,0.03281972]
[1767506522226,0.05929274,91415.0,91411.0,0.0109396]
[1767506522528,0.04835362,91415.0,91411.0,0.0109396]
[1767506522704,0.01093924,91414.0,91410.0,0.03281972]
[1767506523231,0.05929274,91415.0,91410.0,0.03281972]
[1767506523436,0.01093924,91414.0,91410.0,0.02188]
[1767506523859,0.01093948,91412.0,91405.0,0.05470131]
[1767506524054,0.04835362,91415.0,91408.0,0.01093996]
[1767506524255,0.04835362,91415.0,91412.0,0.000999]
[1767506524431,0.04835362,91415.0,91411.0,0.0109396]
[1767506524603,0.0592925,91417.0,91412.0,0.01093948]
[1767506525050,0.04835362,91417.0,91414.0,0.01093924]
[1767506525360,0.01093852,91420.0,91417.0,0.00104222]
[1767506525657,0.01093852,91420.0,91417.0,8.822e-05]
[1767506525891,0.01093828,91422.0,91417.0,0.0110271]
[1767506526021,0.01093816,91423.0,91417.0,0.01093888]
[1767506526225,0.01093828,91422.0,91417.0,0.01093888]
[1767506526976,0.05929202,91421.0,91417.0,0.01093888]
[1767506527127,0.0109384,91421.0,91417.0,0.01093888]
[1767506527320,4.5e-05,91417.0,91416.0,0.010939]
[1767506527767,0.04835362,91420.0,91416.0,0.010939]
[1767506527974,0.04835362,91420.0,91416.0,0.0108939]
[1767506528153,0.05929214,91420.0,91415.0,0.01093912]
[1767506528342,0.01093888,91417.0,91411.0,0.0109396]
[1767506528543,0.04835362,91417.0,91413.0,0.01093936]
[1767506528945,0.04835362,91417.0,91414.0,0.01093924]
[1767506529352,0.04835362,91417.0,91413.0,0.01093936]
[1767506529597,0.04835362,91417.0,91414.0,0.01093924]
[1767506529789,0.0592925,91417.0,91413.0,0.01093936]
[1767506529989,0.01093876,91418.0,91412.0,0.01093948]
[1767506530192,0.01093876,91418.0,91413.0,0.01093936]
[1767506530394,0.01093876,91418.0,91413.0,0.01089525]
[1767506530575,0.01093876,91418.0,91414.0,0.01093924]
[1767506530946,0.01093876,91418.0,91412.0,0.01093948]
[1767506531189,0.00995677,91412.0,91410.0,0.01093972]
[1767506531539,0.00991177,91412.0,91410.0,0.01093972]
[1767506531902,4.5e-05,91410.0,91408.0,0.01093996]
[1767506532287,4.5e-05,91410.0,91407.0,0.03282008]
[1767506532487,0.00991177,91412.0,91407.0,0.02188]
[1767506532713,0.00991177,91412.0,91407.0,0.03282008]
[1767506532916,0.02085125,91412.0,91407.0,0.03282008]
[1767506533210,0.00991177,91412.0,91409.0,0.01093984]
[1767506533450,0.00895777,91412.0,91409.0,0.01093984]
[1767506533659,0.00895777,91412.0,91409.0,0.06563868]
[1767506533822,0.010939,91416.0,91411.0,0.0109396]
[1767506534025,0.010939,91416.0,91412.0,0.01093948]
[1767506534206,0.010939,91416.0,91411.0,0.0109396]
[1767506534404,0.010939,91416.0,91412.0,0.01093948]
[1767506534846,0.06563377,91417.0,91412.0,0.01093948]
[1767506535778,0.01093888,91417.0,91412.0,0.01093948]
[1767506535974,0.01093888,91417.0,91413.0,0.01093936]
[1767506536185,0.01093876,91418.0,91413.0,0.01093936]
[1767506536389,0.01093864,91419.0,91414.0,0.01093924]
[1767506536533,0.04835362,91422.0,91416.0,1e-08]
[1767506536732,0.02188,91424.0,91419.0,0.00104222]
[1767506536936,0.02188,91424.0,91421.0,0.0109384]
[1767506537136,0.04835362,91423.0,91421.0,0.01053839]
[1767506537374,0.04835362,91423.0,91419.0,0.01193576]
[1767506537594,0.02188,91424.0,91419.0,0.01193576]
[1767506537928,0.01193576,91445.0,91419.0,0.01193576]
[1767506537929,0.04835362,91431.0,91425.0,0.017568]
[1767506538503,0.04835362,91431.0,91428.0,0.01093756]
[1767506538701,0.04835362,91431.0,91429.0,0.05468724]
[1767506538879,0.04735649,91431.0,91429.0,0.05468724]
[1767506539894,0.04735649,91431.0,91428.0,0.01089246]
[1767506541079,0.04735649,91431.0,91428.0,0.06557972]
[1767506541990,0.04735649,91431.0,91428.0,0.06543578]
[1767506542227,0.01093673,91435.0,91434.0,0.04683951]
[1767506542405,0.06562021,91436.0,91435.0,0.0457964]
[1767506543243,0.01093661,91436.0,91435.0,0.0457964]
[1767506546733,0.00993761,91436.0,91432.0,0.04683951]
[1767506546905,0.01093673,91435.0,91432.0,0.04683951]
[1767506547244,0.01093649,91437.0,91432.0,0.05777659]
[1767506547736,0.02656181,91439.0,91432.0,0.04683951]
[1767506548148,0.01093673,91435.0,91432.0,0.04683951]
[1767506548355,0.0108485,91435.0,91431.0,0.0109372]
[1767506549010,0.0108485,91435.0,91430.0,0.01093732]
[1767506549148,0.0108485,91435.0,91431.0,0.0109372]
[1767506549354,0.01093661,91436.0,91431.0,0.0109372]
[1767506549555,0.01084838,91436.0,91431.0,0.0109372]
[1767506549963,0.01093673,91435.0,91430.0,0.01093732]
[1767506550245,0.01093685,91434.0,91429.0,0.11472951]
[1767506550817,0.01093685,91434.0,91430.0,0.06004264]
[1767506550991,0.01093673,91435.0,91430.0,0.06004264]
[1767506551749,0.01093673,91435.0,91431.0,0.0109372]
[1767506552126,0.01093673,91435.0,91430.0,0.06004264]
[1767506552696,0.01093673,91435.0,91430.0,0.01093732]
[1767506553210,0.01093673,91435.0,91431.0,0.0109372]
[1767506554680,0.01084838,91436.0,91431.0,0.0109372]
[1767506555463,0.01093649,91437.0,91432.0,0.04612665]
[1767506555666,0.01093601,91441.0,91435.0,0.01093673]
[1767506555847,0.01093613,91440.0,91436.0,0.01093661]
[1767506556048,0.01093577,91443.0,91438.0,0.01093637]
[1767506556049,0.01093589,91442.0,91438.0,0.01093637]
[1767506556261,0.01093589,91442.0,91437.0,0.01093649]
[1767506556462,0.01093589,91442.0,91438.0,0.01093637]
[1767506556664,0.01093577,91443.0,91439.0,0.01093625]
[1767506557091,0.03281565,91444.0,91439.0,0.01093625]
[1767506557302,0.01093577,91443.0,91439.0,0.01093625]
[1767506557678,0.01093577,91443.0,91438.0,0.01093637]
[1767506557880,0.01093577,91443.0,91439.0,0.01093625]
[1767506558182,0.02188,91444.0,91440.0,0.01093613]
[1767506559329,0.03281565,91444.0,91439.0,0.01093625]
[1767506559929,0.0001524,91449.0,91444.0,0.000999]
[1767506560131,0.0001524,91449.0,91443.0,0.01093577]
[1767506560287,0.01093529,91447.0,91443.0,0.01093577]
[1767506561029,0.01093517,91448.0,91442.0,0.01093589]
[1767506561261,0.01093541,91446.0,91442.0,0.01093589]
[1767506561429,0.000999,91442.0,91439.0,0.01093625]
[1767506561594,0.010999,91442.0,91439.0,0.01093625]
[1767506561796,0.01,91442.0,91439.0,0.01093625]
[1767506562001,0.01093553,91445.0,91440.0,0.01093613]
[1767506562700,0.01093565,91444.0,91439.0,0.01093625]
[1767506563601,0.01093553,91445.0,91440.0,0.01093613]
[1767506563818,0.01093553,91445.0,91441.0,0.01093601]
[1767506564225,0.01093541,91446.0,91441.0,0.01093601]
[1767506564834,0.01093529,91447.0,91442.0,0.01093589]
[1767506565486,0.01093529,91447.0,91443.0,0.01093577]
[1767506565659,0.01093517,91448.0,91443.0,0.01093577]
[1767506566042,0.01093517,91448.0,91444.0,0.01093565]
[1767506566249,0.05958338,91448.0,91443.0,0.01093577]
[1767506566494,0.01093529,91447.0,91443.0,0.01093577]
[1767506567180,0.01093517,91448.0,91443.0,0.01093577]
[1767506567589,0.01093529,91447.0,91442.0,0.01093589]
[1767506567794,0.000999,91443.0,91442.0,0.01093589]
[1767506567993,0.01093541,91446.0,91442.0,0.01093589]
[1767506568173,0.01093541,91446.0,91441.0,0.06561565]
[1767506568395,0.01093553,91445.0,91440.0,0.01093613]
[1767506568986,0.01093517,91448.0,91443.0,0.01093577]
[1767506569592,0.01108745,91449.0,91444.0,0.01093565]
[1767506569867,0.01108745,91449.0,91443.0,0.01093577]
[1767506569868,0.01093517,91448.0,91443.0,0.01093577]
[1767506570423,0.01108745,91449.0,91444.0,0.01093565]
[1767506571611,0.01093517,91448.0,91444.0,0.01093565]
[1767506572594,0.01108745,91449.0,91444.0,0.01093565]
[1767506573912,0.01108745,91449.0,91445.0,0.01093553]
[1767506574082,0.01108745,91449.0,91445.0,0.01089043]
[1767506574667,0.01093517,91448.0,91444.0,0.01093565]
[1767506574863,0.01093517,91448.0,91441.0,0.01093601]
[1767506575178,0.01093517,91448.0,91443.0,0.01093577]
[1767506576352,0.01093517,91448.0,91441.0,0.05467961]
[1767506576598,0.04823609,91440.0,91436.0,0.01093661]
[1767506576753,0.04823609,91440.0,91437.0,0.02188]
[1767506576957,0.04814785,91440.0,91437.0,0.02188]
[1767506577885,0.04814785,91440.0,91437.0,0.010881]
[1767506578744,0.04814785,91440.0,91437.0,0.02181749]
[1767506578925,0.05908398,91440.0,91437.0,0.010881]
[1767506580285,0.04814785,91440.0,91437.0,0.02181749]
[1767506580516,0.04814785,91440.0,91437.0,0.010881]
[1767506580703,0.04814785,91440.0,91437.0,0.02181749]
[1767506581462,0.04814785,91440.0,91437.0,0.010881]
[1767506581640,0.04814785,91440.0,91437.0,0.02181749]
[1767506582198,0.04814785,91440.0,91437.0,0.010881]
[1767506582366,0.04814785,91440.0,91437.0,0.02181749]
[1767506582970,0.04714885,91440.0,91437.0,0.02181749]
[1767506587481,0.05651232,91442.0,91437.0,0.02181749]
[1767506588484,0.05651244,91441.0,91437.0,0.010881]
[1767506590395,0.05651256,91440.0,91437.0,0.010881]
[1767506590932,0.04557643,91440.0,91437.0,0.010881]
[1767506591142,0.05651256,91440.0,91437.0,0.010881]
[1767506591793,0.01093613,91440.0,91437.0,0.010881]
[1767506592774,0.06561716,91440.0,91437.0,0.010881]
[1767506592974,0.01093613,91440.0,91437.0,0.010881]
[1767506593206,0.11119292,91441.0,91437.0,0.010881]
[1767506593407,0.04557643,91441.0,91437.0,0.02181749]
[1767506593773,0.0546761,91448.0,91438.0,0.04635191]
[1767506594034,0.01093433,91455.0,91446.0,0.01083538]
[1767506594219,0.01093433,91455.0,91449.0,0.01093505]
[1767506594425,0.0109341,91457.0,91449.0,0.01093505]
[1767506594613,0.01093421,91456.0,91451.0,0.01093481]
[1767506594787,0.01093433,91455.0,91449.0,0.01093505]
[1767506595115,0.05651088,91454.0,91450.0,0.01093493]
[1767506595316,0.05651088,91454.0,91449.0,0.01093505]
[1767506595529,0.05651088,91454.0,91450.0,0.01093493]
[1767506596202,0.04557643,91454.0,91450.0,0.01093493]
[1767506596408,0.01093457,91453.0,91448.0,0.01093517]
[1767506596611,0.04557643,91452.0,91448.0,0.01093517]
[1767506596973,0.04557643,91452.0,91447.0,0.05467603]
[1767506597590,0.04557643,91452.0,91446.0,0.05467707]
[1767506598034,0.05651112,91452.0,91447.0,0.01093529]
[1767506598245,0.04557643,91450.0,91447.0,0.01093529]
[1767506598441,0.01093457,91453.0,91448.0,0.01093517]
[1767506598638,0.01093445,91454.0,91449.0,0.01093505]
[1767506598877,0.01093457,91453.0,91448.0,0.01093517]
[1767506599248,0.01093481,91451.0,91446.0,0.01093541]
[1767506599594,0.01093493,91450.0,91445.0,0.01093553]
[1767506600193,0.01093493,91450.0,91446.0,0.01093541]
[1767506600393,0.01093541,91446.0,91440.0,0.24771399]
[1767506600571,0.01093529,91447.0,91442.0,0.01093589]
[1767506600773,0.01093541,91446.0,91441.0,0.03281601]
[1767506600977,0.01093541,91446.0,91441.0,0.02188]
[1767506602001,0.01093529,91447.0,91446.0,0.000999]
[1767506602353,0.01093529,91447.0,91442.0,0.01093589]
[1767506603395,0.01093517,91448.0,91444.0,0.01093565]
[1767506603598,0.06561085,91449.0,91444.0,0.01093565]
[1767506603803,0.01093517,91448.0,91443.0,0.01093577]
[1767506604157,0.01093529,91447.0,91443.0,0.01093577]
[1767506604356,0.01093529,91447.0,91442.0,0.01093589]
[1767506604784,0.01093541,91446.0,91442.0,0.01093589]
[1767506605239,0.01093529,91447.0,91442.0,0.01093589]
[1767506605418,0.01093541,91446.0,91441.0,0.03281601]
[1767506606967,0.01093541,91446.0,91442.0,0.01093589]
[1767506607883,0.01093529,91447.0,91442.0,0.01093589]
[1767506608378,0.01093541,91446.0,91442.0,0.01093589]
[1767506608761,0.01093517,91448.0,91443.0,0.01093577]
[1767506608961,0.01093505,91449.0,91444.0,0.01093565]
[1767506609162,0.05467437,91451.0,91444.0,0.01093565]
[1767506609163,0.01093493,91450.0,91445.0,0.01093553]
[1767506609362,0.01093505,91449.0,91444.0,0.01093565]
[1767506609683,0.04557643,91447.0,91444.0,0.01093565]
[1767506610326,0.01093505,91449.0,91444.0,0.01093565]
[1767506610529,0.01093505,91449.0,91445.0,0.01093553]
[1767506610730,0.01064652,91449.0,91445.0,0.01093553]
[1767506610932,0.05580999,91449.0,91445.0,0.01093553]
[1767506611909,0.04516347,91449.0,91445.0,0.01093553]
[1767506612090,0.01093529,91447.0,91443.0,0.01093577]
[1767506612288,0.01093517,91448.0,91443.0,0.01093577]
[1767506612545,0.04516347,91449.0,91445.0,0.01093553]
[1767506613043,0.04516347,91449.0,91444.0,0.06561347]
[1767506613264,0.04516347,91449.0,91445.0,0.01093553]
[1767506613403,0.01093517,91448.0,91443.0,0.01093577]
[1767506613610,0.01093529,91447.0,91443.0,0.01093577]
[1767506614036,0.01093517,91448.0,91444.0,0.01093565]
[1767506614593,0.04516347,91449.0,91445.0,0.01093553]
[1767506614757,0.01093493,91450.0,91445.0,0.01093553]
[1767506615975,0.06560761,91453.0,91446.0,0.01093541]
[1767506616515,0.06460861,91453.0,91448.0,0.01093517]
[1767506616883,0.01093469,91452.0,91446.0,0.01093541]
[1767506617086,0.01093469,91452.0,91447.0,0.01093529]
[1767506618522,0.01093481,91451.0,91446.0,0.01093541]
[1767506619072,0.01093493,91450.0,91444.0,0.01093565]
[1767506619322,0.01093505,91449.0,91445.0,0.01093553]
[1767506619735,0.01093505,91449.0,91444.0,0.01093565]
[1767506620487,0.01093517,91448.0,91444.0,0.01093565]
[1767506620688,0.000999,91444.0,91442.0,0.065615]
[1767506620888,0.06561076,91449.0,91444.0,0.01093565]
[1767506620889,0.01093505,91449.0,91444.0,0.01093565]
[1767506621372,0.01093493,91450.0,91445.0,0.01093553]
[1767506622411,0.05611071,91450.0,91441.0,0.02188]
[1767506622618,0.01186553,91445.0,91441.0,0.01093601]
[1767506622927,0.0008849,91445.0,91442.0,0.01093589]
[1767506623135,0.01093529,91447.0,91443.0,0.01093577]
[1767506623339,0.01093517,91448.0,91443.0,0.01093577]
[1767506623543,0.01093517,91448.0,91444.0,0.01093565]
[1767506623929,0.01093529,91447.0,91442.0,0.06561481]
[1767506624130,0.01093541,91446.0,91441.0,0.06561604]
[1767506624329,0.01093529,91447.0,91442.0,0.01093589]
[1767506624908,0.01093529,91447.0,91443.0,0.01093577]
[1767506625284,0.05467533,91449.0,91443.0,0.01093577]
[1767506625485,0.05611071,91450.0,91442.0,0.01093589]
[1767506626495,0.06561146,91448.0,91442.0,0.01093589]
[1767506626692,0.01093517,91448.0,91442.0,0.01093589]
[1767506626918,0.01093529,91447.0,91443.0,0.01093577]
[1767506627721,0.01093517,91448.0,91443.0,0.01093577]
[1767506627923,0.05467335,91453.0,91448.0,0.010114]
[1767506628099,0.06560792,91453.0,91448.0,0.01006989]
[1767506628298,0.01093481,91451.0,91448.0,0.01]
[1767506628503,0.01093469,91452.0,91448.0,0.01]
[1767506628951,0.01093469,91452.0,91448.0,0.02093517]
[1767506629152,0.01086469,91452.0,91448.0,0.01]
[1767506629450,0.01093469,91452.0,91448.0,0.01]
[1767506629833,0.01093457,91453.0,91448.0,0.02093517]
[1767506630616,0.01093469,91452.0,91448.0,0.01]
[1767506631449,0.01093481,91451.0,91448.0,0.01]
[1767506631649,0.01093493,91450.0,91446.0,0.01093541]
[1767506632158,0.01093481,91451.0,91446.0,0.01093541]
[1767506632477,0.01093469,91452.0,91447.0,0.01093529]
[1767506632879,0.04517578,91456.0,91452.0,0.000999]
[1767506633084,0.04517578,91456.0,91451.0,0.01093481]
[1767506633260,0.04517578,91456.0,91455.0,0.10504374]
[1767506633645,0.05610976,91458.0,91456.0,0.000999]
[1767506633843,0.05610976,91458.0,91456.0,1e-08]
[1767506634031,0.05610976,91458.0,91455.0,0.10504374]
[1767506635185,0.26952509,91480.0,91455.0,0.10504374]
[1767506635186,0.21865809,91467.0,91455.0,0.10504374]
[1767506635498,0.01093374,91460.0,91455.0,0.11597807]
[1767506635664,0.01093374,91460.0,91455.0,0.10504374]
[1767506635866,0.01093386,91459.0,91455.0,0.10504374]
[1767506636278,0.01093374,91460.0,91455.0,0.10504374]
[1767506636598,0.01093386,91459.0,91455.0,0.10504374]
[1767506637565,0.01093398,91458.0,91455.0,0.10504374]
[1767506640760,0.02188,91462.0,91458.0,0.01093398]
[1767506640904,0.0328135,91462.0,91455.0,0.10504374]
[1767506641119,0.01093362,91461.0,91456.0,0.01093421]
[1767506641312,0.04901904,91460.0,91454.0,0.05467217]
[1767506641579,0.05995278,91460.0,91454.0,0.01093445]
[1767506641776,0.01093374,91460.0,91454.0,0.05897206]
[1767506641986,0.01093362,91461.0,91455.0,0.01093433]
[1767506642140,0.01093362,91461.0,91454.0,0.05897206]
[1767506642547,0.01093362,91461.0,91456.0,0.04803761]
[1767506642782,0.01093374,91460.0,91456.0,0.05897182]
[1767506642985,0.02188,91462.0,91458.0,0.05897159]
[1767506643634,0.0328135,91462.0,91458.0,0.04803761]
[1767506643822,0.02188,91462.0,91459.0,0.04803761]
[1767506644446,0.02188,91462.0,91459.0,0.05897147]
[1767506644807,0.02188,91462.0,91459.0,0.04803761]
[1767506645202,0.0327684,91462.0,91459.0,0.04803761]
[1767506646143,0.0218349,91462.0,91459.0,0.05897147]
[1767506646727,0.0327684,91462.0,91459.0,0.04803761]
[1767506647105,0.0218349,91462.0,91459.0,0.05897147]
[1767506647696,0.0327684,91462.0,91459.0,0.04803761]
[1767506647899,0.0218349,91462.0,91459.0,0.04703861]
[1767506648099,0.0218349,91462.0,91459.0,0.05797247]
[1767506648561,0.0327684,91462.0,91457.0,0.0109341]
[1767506648735,0.01,91459.0,91456.0,0.05897182]
[1767506648956,0.01,91459.0,91457.0,0.04803761]
[1767506649152,0.01,91459.0,91458.0,0.10270751]
[1767506649353,0.0218349,91462.0,91459.0,0.01093386]
[1767506650058,0.0218349,91462.0,91459.0,0.05897147]
[1767506650359,0.0327684,91462.0,91459.0,0.04803761]
[1767506650560,0.0218349,91462.0,91459.0,0.05897147]
[1767506651466,0.0218349,91462.0,91459.0,0.03803761]
[1767506651626,0.0218349,91462.0,91458.0,0.01093398]
[1767506651823,0.0218349,91462.0,91459.0,0.06560316]
[1767506652025,0.0208359,91462.0,91459.0,0.01093386]
[1767506653725,0.0208359,91462.0,91459.0,0.06560289]
[1767506654531,0.0208359,91462.0,91459.0,0.01093386]
[1767506655073,0.0208359,91462.0,91458.0,0.01093398]
[1767506655245,0.0208359,91462.0,91454.0,0.05467188]
[1767506655246,0.01093433,91455.0,91450.0,0.01093493]
[1767506655446,0.01093032,91455.0,91450.0,0.01093493]
[1767506656036,0.01093032,91455.0,91451.0,0.01093481]
[1767506656683,8.621e-05,91455.0,91451.0,0.01093481]
[1767506657227,8.621e-05,91455.0,91452.0,0.0656077]
[1767506657339,8.621e-05,91455.0,91453.0,0.04803761]
[1767506657946,8.621e-05,91455.0,91452.0,0.01093469]
[1767506658346,8.621e-05,91455.0,91452.0,0.0589723]
[1767506659946,8.621e-05,91455.0,91452.0,0.01093469]
[1767506660502,8.621e-05,91455.0,91453.0,0.04803761]
[1767506660939,8.621e-05,91455.0,91452.0,0.0589723]
[1767506661432,8.621e-05,91455.0,91452.0,0.11364531]
[1767506662131,8.621e-05,91455.0,91452.0,0.0589723]
[1767506662367,8.621e-05,91455.0,91453.0,0.05467289]
[1767506662607,0.000999,91453.0,91452.0,0.01093469]
[1767506662807,8.621e-05,91455.0,91452.0,0.01093469]
[1767506663321,8.621e-05,91455.0,91452.0,0.01089058]
[1767506663547,0.01102054,91455.0,91451.0,0.01093481]
[1767506663756,8.621e-05,91455.0,91452.0,0.01093469]
[1767506663941,8.621e-05,91455.0,91452.0,0.06560812]
[1767506664540,8.621e-05,91455.0,91453.0,0.05467246]
[1767506664942,0.000999,91453.0,91450.0,0.06560909]
[1767506665546,8.621e-05,91455.0,91452.0,0.01093469]
[1767506666127,8.621e-05,91455.0,91453.0,0.04803761]
[1767506666468,0.01093374,91460.0,91458.0,1e-08]
[1767506669064,0.06560286,91460.0,91458.0,1e-08]
[1767506669531,0.02084775,91458.0,91453.0,0.01093457]
[1767506669733,0.02084775,91458.0,91453.0,0.01089046]
[1767506671147,0.02084775,91458.0,91454.0,0.01093445]
[1767506671768,0.02084775,91458.0,91454.0,0.05976924]
[1767506672208,0.01093398,91458.0,91454.0,0.05976924]
[1767506674400,0.01093398,91458.0,91454.0,0.04783579]
[1767506674606,0.01093398,91458.0,91452.0,0.01093469]
[1767506674767,0.01093421,91456.0,91452.0,0.01093469]
[1767506674970,0.01093421,91456.0,91450.0,0.1022302]
[1767506675614,0.01093433,91455.0,91451.0,0.04755594]
[1767506675815,0.01093433,91455.0,91451.0,0.05849075]
[1767506676011,0.01093421,91456.0,91452.0,0.01093469]
[1767506676216,0.06560428,91458.0,91453.0,0.01093457]
[1767506676417,0.01093398,91458.0,91453.0,0.01093457]
[1767506676649,0.01093386,91459.0,91458.0,0.000999]
[1767506676792,0.01093386,91459.0,91454.0,0.01093445]
[1767506676996,0.01093386,91459.0,91455.0,0.01093433]
[1767506677295,0.01093386,91459.0,91454.0,0.01093445]
[1767506677750,0.01093386,91459.0,91455.0,0.01093433]
[1767506678049,0.01093386,91459.0,91454.0,0.01093445]
[1767506678212,0.01093338,91463.0,91456.0,0.03464135]
[1767506678414,0.02188,91462.0,91458.0,0.04755594]